{"text_format":"1","workbook":"xlsx","n_sheets":11,"sheets":["参４_申請","参４_申請_事業計画","別紙１①","別紙１③","別紙１④","別紙３","別紙８","別紙２②（ネットワーク化活動計画）","別紙２③（ネットワーク化）","別紙２④（統合）","別紙２⑤（多様な組織等の参画）"],"not_rendered":{"charts":0,"images":3,"macros":1,"external_links":5,"defined_names":99,"comments":1,"pivot_tables":0},"unopened":[],"bounds":{"document_bytes":16777216,"sheet_cells":100000,"rows_first":2000,"rows_last":500,"rows_between":2000,"halvings":0,"cell_chars":16384,"cell_head_chars":4096},"cells_cut":0,"cells_raw":0,"read":"whole","date_system":"1900"}

{"sheet":"参４_申請","index":0,"n_rows":28,"n_cols":30,"rows_kept":28,"cut":false,"hidden":false,"merged":[[3,0,3,2],[17,2,17,4],[18,0,18,5],[20,2,20,4],[22,1,22,4],[7,0,7,5],[9,0,9,5],[11,0,11,5],[13,0,13,5],[16,2,16,4]]}
["（参考様式第４号）",null,null,null,null,null,null,null,null,null,null,null,null,null,null,null,null,null,null,null,null,null,null,null,null,null,null,null,null,"〇"]
[]
[null,null,null,null,"令和　　年　　月　　日"]
["　山鹿市長　殿　"]
[null,null,null,null,"あいうえお集落協定"]
[null,null,null,"代表者名","中山間　太郎　　印"]
[]
["多面的機能発揮促進事業に関する計画の認定の申請について"]
[]
["　このことについて、農業の有する多面的機能の発揮の促進に関する法律（平成26年法律第78号）第７条第１項［８条第１項］の規定に基づき、下記関係書類を添えて認定を申請する。"]
[]
[]
["１　事業計画"]
[]
["２　農業の有する多面的機能の発揮の促進に関する活動計画書"]
[null,"□","１号事業（多面的機能支払交付金）"]
[null,"☑","２号事業（中山間地域等直接支払交付金）"]
[null,"□","３号事業（環境保全型農業直接支払交付金）"]
[]
["３　その他"]
[null,"□","都道府県の同意書の写し（都道府県営土地改良施設の管理）"]
[]
[null,"※農山漁村の活性化のための定住等及び地域間交流の促進に関する法律（平成19年法律第48号）第５条第１項に規定する活性化計画が作成されている場合であって、その添付書類として、多面的機能発揮促進事業に関する計画の認定の申請（変更の認定の申請の場合も含む。）に必要な上記１から３までに掲げる書類が既に市町村長に提出されているときは、これらの書類の添付を省略することができる。"]
[]
[null,"□","※に該当するため、書類の添付を省略する。"]
[]
["＜施行注意＞"]
["　変更の認定の申請の場合は、［　］内の記載に置き換えるものとする。"]

{"sheet":"参４_申請_事業計画","index":1,"n_rows":51,"n_cols":9,"rows_kept":51,"cut":false,"hidden":false,"merged":[[23,3,23,4],[23,5,23,8],[2,1,2,8],[4,7,4,8],[5,7,5,8],[10,2,10,8],[13,2,13,8],[18,3,18,8],[19,3,22,4],[19,5,20,5],[19,6,20,8],[21,5,22,5],[21,6,22,8],[6,6,6,7],[38,3,42,8],[45,3,45,8],[48,3,48,8],[50,1,50,8],[24,3,24,4],[24,5,24,8],[25,3,25,4],[25,5,25,8],[28,3,29,8],[34,3,35,8]]}
[]
[]
[null,"多面的機能発揮促進事業に関する計画"]
[]
[null,null,null,null,null,null,null,{"$f":"参４_申請!E3","v":"令和　　年　　月　　日"}]
[null,null,null,null,null,null,null,"あいうえお集落協定"]
[null,null,null,null,null,null,"代表者　中山間　太郎　　",null,"印"]
[null,"１ 多面的機能発揮促進事業の目標"]
[]
[null,"１．現況"]
[null,null,"　本地域は、振興山村に指定されるなど、平場地域と比べて生産条件の格差が大きいことから、これを補正する取組を行うことが必要である。"]
[]
[null,"２．目標"]
[null,null,"　１を踏まえ、本地域では、機械の共同利用や農作業の共同化にも取り組み、農業生産活動を継続することにより、多面的機能の発揮の促進を図ることとする。"]
[]
[null,"２ 多面的機能発揮促進事業の内容"]
[null,"　（１）多面的機能発揮促進事業の種類及び実施区域"]
[null,"　　① 種類（実施するものに○を付すこと。）"]
[null,null,null,"１号事業（多面的機能支払交付金）"]
[null,null,null,null,null,null,"農業の有する多面的機能の発揮の促進に関する法律（平成26年法律第78号。以下「法」という。）第３条第３項第１号イに掲げる施設の維持その他の主として当該施設の機能の保持を図る活動（以下「イの活動」という。）\n（農地維持支払交付金）"]
[]
[null,null,null,null,null,null,"法第３条第３項第１号ロに掲げる施設の改良その他の主として当該施設の機能の増進を図る活動（以下「ロの活動」という。）\n（資源向上支払交付金）"]
[]
[null,null,null,"〇",null,"２号事業（中山間地域等直接支払交付金）"]
[null,null,null,null,null,"３号事業（環境保全型農業直接支払交付金）"]
[null,null,null,null,null,"４号事業（その他農業の有する多面的機能の発揮の促進に資する事業）"]
[]
[null,"　　② 実施区域"]
[null,null,null,"　別添の中山間地域等直接支払交付金に係る集落協定（以下、「集落協定」という。）「（別添１）実施区域位置図」のとおり。"]
[]
[]
[null,"　（２）活動の内容等"]
[null,"　　②２号事業"]
[null,"  　 １）農業生産活動の内容"]
[null,null,null,"\n・集落協定「第３　協定対象となる農用地」に記載のとおり。\n"]
[]
[]
[null,"  　 ２）農業生産活動の継続的な実施を推進するための活動"]
[null,null,null,"\n・集落協定「第４　集落マスタープラン」、「第５　農業生産活動等として取り組むべき事項」、　「第８　農業生産活動等の体制整備として取り組むべき事項」及び「第９　加算措置適用のために取り組むべき事項」に記載のとおり。\n"]
[]
[]
[]
[]
[]
[null,"３ 多面的機能発揮促進事業の実施期間"]
[null,null,null,"\n・集落協定「Ⅰ．地区の概要」の「１．活動期間」のとおり。\n"]
[]
[null,"４ 農業者団体等の構成員に係る事項"]
[null,null,null,"\n・集落協定「（別添２）構成員一覧」に記載のとおり。\n"]
[null,"＜施行注意＞"]
[null,"　記入内容が集落協定もしくは個別協定と重複する場合は、「２（１）②実施区域」、「２（２）活動内容等」、「３　多面的機能発揮促進事業の実施期間」及び「農業者団体等の構成員に係る事項」の記入を省略することも可能とする。"]

{"sheet":"別紙１①","index":2,"n_rows":69,"n_cols":19,"rows_kept":69,"cut":false,"hidden":false,"merged":[[45,6,45,8],[29,14,29,16],[54,2,55,5],[55,6,55,8],[52,11,52,13],[36,11,36,13],[19,4,19,16],[20,4,20,16],[21,4,21,16],[34,11,34,13],[38,14,38,16],[36,14,36,16],[54,6,54,8],[45,14,45,16],[35,9,35,10],[32,3,32,5],[32,6,32,8],[32,9,32,10],[41,1,42,2],[29,1,29,2],[38,1,39,2],[68,1,68,18],[3,1,3,18],[65,1,65,18],[66,1,66,18],[52,9,52,10],[30,3,30,5],[30,6,30,8],[30,9,30,10],[30,11,30,13],[27,1,27,18],[30,1,31,2],[31,9,31,10],[11,6,11,16],[12,6,12,16],[43,6,43,8],[43,9,43,10],[45,3,45,5],[48,3,48,17],[49,3,49,17],[46,14,47,16],[29,6,29,8],[29,9,29,10],[29,11,29,13],[11,3,11,5],[1,17,1,18],[5,3,5,5],[6,3,6,5],[8,3,8,5],[9,3,9,5],[6,6,6,16],[5,6,5,16],[8,6,8,16],[9,6,9,16],[12,3,12,5],[29,3,29,5],[38,3,38,5],[38,6,38,8],[38,9,38,10],[15,4,15,17],[18,4,18,16],[43,2,44,2],[44,3,44,5],[44,6,44,8],[34,1,35,2],[34,3,34,5],[34,6,34,8],[34,9,34,10],[25,2,25,18],[37,9,37,10],[39,9,39,10],[32,1,33,2],[30,14,30,16],[32,14,32,16],[34,14,34,16],[42,11,42,13],[38,11,38,13],[36,1,37,2],[64,1,64,5],[32,11,32,13],[56,1,56,18],[46,9,46,10],[53,6,53,8],[45,9,45,10],[45,11,45,13],[51,11,51,13],[52,6,52,8],[55,9,55,10],[55,11,55,13],[53,9,53,10],[53,11,53,13],[60,1,60,18],[54,9,54,10],[36,9,36,10],[41,14,42,16],[44,14,44,16],[58,1,58,18],[45,2,47,2],[46,3,46,5],[43,3,43,5],[41,17,42,17],[41,18,42,18],[62,1,62,5],[46,18,47,18],[47,4,47,5],[46,17,47,17],[33,9,33,10],[46,6,46,8],[36,6,36,8],[63,1,63,5],[54,11,54,13],[47,12,47,13],[44,9,44,10],[43,11,44,13],[47,7,47,8],[42,3,42,5],[42,6,42,8],[42,9,42,10],[51,1,53,5],[46,11,46,13],[50,1,50,18],[51,6,51,8],[51,9,51,10],[48,1,49,1],[48,2,49,2],[36,3,36,5]]}
[]
[null,null,null,null,null,null,null,null,null,null,null,null,null,null,null,null,null,"（別紙様式１）"]
[]
[null,"農業の有する多面的機能の発揮の促進に関する活動計画書\n（中山間地域等直接支払に係る集落協定）"]
[]
[null,null,null,"ふりがな",null,null,"あいうえお　しゅうらくきょうてい"]
[null,null,null,"組織名",null,null,"あいうえお　集落協定"]
[]
[null,null,null,"ふりがな",null,null,"ちゅうさんかん　たろう"]
[null,null,null,"代表者氏名",null,null,"中山間　太郎"]
[]
[null,null,null,"ふりがな",null,null,"やまがしやまが"]
[null,null,null,"所在地",null,null,"山鹿市山鹿１２３－４"]
[]
[]
[null,null,null,"Ⅰ．　","地区の概要（共通）"]
[]
[null,null,null,"＜活動の計画＞"]
[null,null,null,{"$f":"参４_申請!B16","v":"□"},"Ⅱ． １号事業（多面的機能支払）",null,null,null,null,null,null,null,null,null,null,null,null,"別紙"]
[null,null,null,{"$f":"参４_申請!B17","v":"☑"},"Ⅲ． ２号事業（中山間地域等直接支払）",null,null,null,null,null,null,null,null,null,null,null,null,"別紙1"]
[null,null,null,{"$f":"参４_申請!B18","v":"□"},"Ⅳ． ３号事業（環境保全型農業直接支払）",null,null,null,null,null,null,null,null,null,null,null,null,"別紙　"]
[null,null,null,"□","Ⅴ． その他多面的機能の発揮の促進に資する事業に係る計画書",null,null,null,null,null,null,null,null,null,null,null,null,"別紙　"]
[null,null,null,"（注）該当する活動にチェックし、取り組む活動の別紙のみ添付すること"]
[]
[null,null,"＜施行注意＞"]
[null,null,"　提出の際に（　）内は、多面的機能支払に係る活動計画書、中山間地域等直接支払に係る集落協定、環境保全型農業直接支払に係る営農活動計画書のうち該当する活動の計画書若しくは協定を記載すること。"]
["Ⅰ．地区の概要"]
[null,"※ 以下、（多面的機能支払、中山間地域等直接支払、環境保全型農業直接支払）をそれぞれ（多面支払、中山間直払、環境直払）と一部で表示"]
[null," １．活動期間"]
[null,null,null,"活動開始年度\n(計画認定年度)",null,null,"活動終了年度",null,null,"交付金の\n交付年数",null,"計画変更",null,null,"計画変更"]
[null,"農地維持支払"]
[null,null,null,"令和",null,"年度","令和",null,"年度",null,null,"令和",null,"年度","令和",null,"年度"]
[null,"資源向上支払（共同）"]
[null,null,null,"令和",null,"年度","令和",null,"年度",null,null,"令和",null,"年度","令和",null,"年度"]
[null,"資源向上支払（長寿命化）"]
[null,null,null,"令和",null,"年度","令和",null,"年度",null,null,"令和",null,"年度","令和",null,"年度"]
[null,"中山間地域等\n直接支払"]
[null,null,null,"令和",7,"年度","令和",11,"年度",{"$f":"H38-E38+1","v":5},null,"令和",null,"年度","令和",null,"年度"]
[null,"環境保全型農業直接支払"]
[null,null,null,"令和",null,"年度","令和",null,"年度",null,null,"令和",null,"年度","令和",null,"年度"]
[null," ２．実施区域内の農用地、施設"]
[null,"協定農用地面積\n又は認定農用地面積※１",null,null,null,null,null,null,null,null,null,null,null,null,"計",null,null,"解消する遊休農地面積","年当たり\n交付金額\n上限"]
[null,null,null,"田",null,null,"畑",null,null,"草地",null,"採草放牧地"]
[null,null,"多面支払"]
[null,null,null,0,null,null,0,null,null,0,null,null,null,null,{"$f":"SUM(D45,G45,J45)","v":0},null,null,0,0]
[null,null,"中山間\n直払",null,null,null,null,null,null,null,null,null,null,null,{"$f":"SUM(D46:N46)","v":0}]
[null,null,null,"a",null,null,"a",null,null,"a",null,"a",null,null,"a",null,null,"a","円"]
[null,null,null,"傾斜","1/20\n1/100",null,"傾斜","8度\n15度",null,"傾斜",null,"傾斜"]
[null,"農地面積","環境\n直払※２",0]
[null,null,null,0,null,null,null,null,null,null,null,null,null,null,null,null,null,null,0]
[null,"※１　 多面支払の認定農用地面積は、集落が管理する農用地面積を記載する。\n※２ 　環境直払に取り組む場合は、Ⅳの４の交付金額の取組面積の合計及び年当たり交付金額上限の合計を\n　　　記載するものとする。"]
[null,"農業用施設\n（多面支払）",null,null,null,null,"水路",null,null,"農道",null,"ため池"]
[]
[null,null,null,null,null,null,0,null,null,0,null,0]
[null,null,"うち、資源向上支払\n（長寿命化）の対象施設"]
[null,null,null,null,null,null,0,null,null,0,null,0]
[null,"※　延長は、小数点以下第１位まで記入する。"]
[null," ３．実施区域位置図"]
[null,"　別添１「実施区域位置図」のとおり　"]
[null," ４．組織構成員一覧"]
[null,"別添２「構成員一覧」のとおり\n　※ 多面支払のみに取り組む場合は、活動組織規約の別紙「構成員一覧」に代えることができる。"]
[null," ５．多面的機能支払と中山間地域等直接支払との重複面積"]
[null,"重複面積\n（多面支払・中山間直払）"]
[null,{"$f":"O44+O46-D64","v":0}]
[null,"a"]
[]
[null,"　※多面支払の活動計画書及び中山間直払の集落協定に位置づけられている施設等については、多面支払の活動組織により活動を実施し、また、多面支払の交付金を充てることとする。"]
[null,"＜施行注意＞"]
[null,"　計画書の変更の際には、容易に比較対照できるよう変更部分を二段書きとし、変更前を（　）書で上段に記載するものとする。"]

{"sheet":"別紙１③","index":3,"n_rows":45,"n_cols":36,"rows_kept":45,"cut":false,"hidden":false,"merged":[[44,0,44,14],[43,0,43,14],[42,0,42,14],[41,0,41,14],[39,0,39,14],[40,0,40,14],[2,5,2,10],[1,0,1,14],[4,11,4,13],[24,10,25,10],[24,11,24,13],[3,3,3,5],[3,6,3,8],[3,9,3,13],[4,4,5,4],[4,5,5,5],[4,7,5,7],[23,0,25,0],[23,1,25,1],[23,2,25,2],[23,3,23,5],[23,6,23,8],[37,0,37,14],[38,0,38,13],[3,0,5,0],[3,1,5,1],[3,2,5,2],[23,9,23,13],[24,4,25,4],[24,5,25,5],[4,8,5,8],[4,10,5,10],[24,7,25,7],[24,8,25,8]]}
["（別添２）"]
["構成員一覧"]
[null,null,null,null,null,"令和　　年　　　月　　　日"]
["役職名","氏名\n（代表者名・\n団体名）","住所","多面的機能支払",null,null,"中山間地域等直接支払",null,null,"環境保全型農業直接支払"]
[null,null,null,null,"分類\n記号","備考\n\n活動支援班員",null,"分類記号","年齢分類記号",null,"他の市町村で環直を実施している場合は、その市町村名を記載","みどり認定"]
[null,null,null,null,null,null,null,null,null,null,null,"認定済","申請中又は申請予定","申請予定無し"]
["代表者\n(例)","○○ ○○","○○県○○市○○",null,null,null,"㊞","A","カ",null,null,null,null,null,null,null,null,null,null,null,null,null,null,null,null,null,null,null,null,null,null,null,null,null,null,"〇"]
[null,null,null,null,null,null,null,null,null,null,null,null,null,null,null,null,null,null,null,null,null,null,null,null,null,null,null,null,null,null,null,null,null,null,null,"〇"]
[null,null,null,null,null,null,null,null,null,null,null,null,null,null,null,null,null,null,null,null,null,null,null,null,null,null,null,null,null,null,null,null,null,null,null,"〇"]
[null,null,null,null,null,null,null,null,null,null,null,null,null,null,null,null,null,null,null,null,null,null,null,null,null,null,null,null,null,null,null,null,null,null,null,"〇"]
[null,null,null,null,null,null,null,null,null,null,null,null,null,null,null,null,null,null,null,null,null,null,null,null,null,null,null,null,null,null,null,null,null,null,null,"〇"]
[]
[]
[]
[]
[null,null,null,null,null,null,null,null,null,null,null,null,null,null,null,null,null,null,null,null,null,null,null,null,null,null,null,null,null,null,null,null,null,null,null,"〇"]
[null,null,null,null,null,null,null,null,null,null,null,null,null,null,null,null,null,null,null,null,null,null,null,null,null,null,null,null,null,null,null,null,null,null,null,"〇"]
[null,null,null,null,null,null,null,null,null,null,null,null,null,null,null,null,null,null,null,null,null,null,null,null,null,null,null,null,null,null,null,null,null,null,null,"〇"]
[null,null,null,null,null,null,null,null,null,null,null,null,null,null,null,null,null,null,null,null,null,null,null,null,null,null,null,null,null,null,null,null,null,null,null,"〇"]
[]
[null,null,null,null,null,null,null,null,null,null,null,null,null,null,null,null,null,null,null,null,null,null,null,null,null,null,null,null,null,null,null,null,null,null,null,"〇"]
[]
[]
["役職名","氏名\n（代表者名・\n団体名）","住所","多面的機能支払",null,null,"中山間地域等直接支払",null,null,"環境保全型農業直接支払"]
[null,null,null,null,"分類\n記号","備考\n\n活動支援班員",null,"分類記号","年齢分類記号",null,"他の市町村で環直を実施している場合は、その市町村名を記載","みどり認定"]
[null,null,null,null,null,null,null,null,null,null,null,"認定済","申請中又は申請予定","申請予定無し"]
["代表者\n(例)","○○ ○○","○○県○○市○○",null,null,null,"㊞","A","カ",null,null,null,null,null,null,null,null,null,null,null,null,null,null,null,null,null,null,null,null,null,null,null,null,null,null,"〇"]
[null,null,null,null,null,null,null,null,null,null,null,null,null,null,null,null,null,null,null,null,null,null,null,null,null,null,null,null,null,null,null,null,null,null,null,"〇"]
[null,null,null,null,null,null,null,null,null,null,null,null,null,null,null,null,null,null,null,null,null,null,null,null,null,null,null,null,null,null,null,null,null,null,null,"〇"]
[null,null,null,null,null,null,null,null,null,null,null,null,null,null,null,null,null,null,null,null,null,null,null,null,null,null,null,null,null,null,null,null,null,null,null,"〇"]
[null,null,null,null,null,null,null,null,null,null,null,null,null,null,null,null,null,null,null,null,null,null,null,null,null,null,null,null,null,null,null,null,null,null,null,"〇"]
[]
[]
[]
[]
[]
[]
["　「中山間地域等直接支払」の欄は、署名又は押印。\n　「中山間地域等直接支払」の欄の署名又は押印については、実施要領第６の１に基づき、交付金の交付の対象となる者を確認するために市町村が行う必要な調査において、第6期対策期間中(令和7～11年度)、農業者から農業所得に関する情報の提供、市町村が保有する所得に関する関係書類の閲覧及び関係機関への照会についても併せて承諾するものである。承諾のない場合は、交付金の交付の対象者となることが確認できないため、本交付金の実施ができない場合がある。対象者は、個人又は一戸一法人で、協定に位置づけられている農用地の管理を行っている者。"]
["注１：「多面的機能支払」「中山間地域等直接支払」「環境保全型農業直接支払」の欄は、各支払に取り組む者に○印を記入。"]
["注２：多面的機能支払に取り組む場合は、「分類番号」を分類番号リストの１～13から選択。"]
["注３：「農業者」とは、協定に位置付けられている農用地において農業生産活動等（多面的機能支払においては、耕作又は養畜）を実施する農業者又は団体である。"]
["注４：中山間地域等直接支払の場合には、「分類記号」を分類記号リストA～Mから選択するとともに、「年齢分類記号」を年齢分類記号リストのア～コから選択。"]
["注５：他の市町村で環境保全型農業直接支払を実施している場合は、その市町村名を全て記載すること。"]
["注６：「みどり認定」の欄は、みどりの食料システム法に基づき、環境負荷低減事業活動実施計画又は特定環境負荷低減事業活動実施計画を作成し、都道府県知事の認定を受けた若しくは受ける予定がある、又は申請予定がない場合についてもいずれかに○をすること。"]
["注７：「多面的機能支払」のみに取り組む場合、住所の記入は不要。"]

{"sheet":"別紙１④","index":4,"n_rows":272,"n_cols":24,"rows_kept":272,"cut":false,"hidden":false,"merged":[[161,13,161,14],[161,15,161,17],[172,0,172,1],[24,5,24,12],[24,14,24,23],[221,1,221,23],[222,1,222,23],[206,9,209,15],[202,9,205,15],[198,9,201,15],[196,9,197,15],[206,17,209,23],[202,17,205,23],[198,17,201,23],[196,17,197,23],[210,17,210,23],[216,1,216,4],[216,5,216,8],[216,9,216,12],[216,13,216,15],[216,17,216,19],[216,20,216,23],[210,2,210,8],[160,15,160,17],[23,5,23,12],[23,14,23,23],[24,0,24,4],[238,0,238,2],[238,3,238,19],[156,0,156,1],[156,2,156,23],[176,0,176,1],[176,2,176,23],[162,0,162,2],[162,3,162,23],[167,0,167,1],[167,2,167,23],[168,0,168,1],[168,2,168,23],[159,0,159,23],[160,0,160,2],[161,0,161,2],[160,3,160,5],[215,13,215,15],[215,17,215,19],[161,3,161,5],[161,7,161,8],[161,9,161,12],[160,7,160,8],[160,13,160,14],[51,0,52,1],[25,0,25,4],[25,5,25,12],[25,14,25,23],[26,0,26,4],[26,5,26,12],[26,14,26,23],[47,0,47,1],[47,2,47,19],[160,9,160,12],[41,0,41,1],[41,2,41,19],[43,0,43,1],[43,2,43,19],[44,0,44,19],[71,1,71,23],[74,1,74,22],[75,1,75,7],[75,8,76,12],[75,13,76,17],[75,18,76,22],[76,1,76,3],[161,18,161,22],[160,18,160,22],[45,0,45,1],[45,2,45,19],[2,0,2,23],[3,0,3,23],[20,14,20,23],[21,14,21,23],[18,0,18,23],[9,0,9,9],[9,10,9,19],[10,0,10,9],[10,10,10,19],[11,0,11,9],[11,10,11,19],[12,0,12,9],[12,10,12,19],[13,0,13,9],[13,10,13,19],[14,0,14,9],[14,10,14,19],[37,0,37,19],[38,0,38,1],[15,0,15,9],[15,10,15,19],[16,0,16,19],[36,0,36,1],[36,2,36,19],[39,0,39,1],[39,2,39,19],[40,0,40,1],[40,2,40,19],[38,2,38,19],[29,0,29,5],[29,7,29,12],[29,13,29,19],[30,0,30,5],[30,7,30,12],[30,13,30,19],[20,0,20,4],[31,0,31,23],[21,0,21,4],[20,5,20,12],[21,5,21,12],[22,0,22,4],[22,5,22,12],[22,14,22,23],[23,0,23,4],[76,4,76,7],[70,1,70,23],[69,1,69,3],[69,4,69,5],[69,7,69,8],[69,9,69,10],[69,12,69,14],[69,15,69,18],[68,15,68,18],[68,19,69,22],[46,2,46,19],[68,12,68,14],[66,19,67,22],[66,15,67,18],[46,0,46,1],[51,2,52,3],[68,1,68,3],[53,0,59,1],[53,2,59,3],[60,0,60,1],[60,2,60,3],[65,1,65,22],[67,1,67,3],[77,18,77,22],[78,1,78,23],[79,1,79,23],[83,1,83,9],[83,10,84,12],[83,13,84,14],[83,15,84,17],[83,18,84,19],[84,1,84,2],[84,3,84,4],[84,5,84,7],[84,8,84,9],[87,3,87,4],[87,5,87,7],[87,8,87,9],[87,10,87,12],[85,15,87,17],[77,1,77,3],[77,4,77,7],[77,8,77,12],[77,13,77,17],[85,13,85,14],[87,13,87,14],[82,1,82,19],[86,13,86,14],[85,18,87,19],[86,1,86,2],[86,3,86,4],[85,1,85,2],[85,3,85,4],[85,5,85,7],[85,8,85,9],[85,10,85,12],[86,5,86,7],[86,8,86,9],[86,10,86,12],[105,1,105,23],[106,1,106,23],[110,1,110,9],[110,10,111,12],[110,13,111,14],[110,15,111,17],[102,15,103,17],[103,1,103,2],[103,3,103,4],[103,5,103,7],[104,13,104,14],[104,15,104,17],[103,8,103,9],[104,1,104,2],[104,3,104,4],[104,5,104,7],[104,8,104,9],[104,10,104,12],[102,1,102,9],[102,10,103,12],[102,13,103,14],[113,1,113,23],[114,1,114,23],[115,1,115,23],[120,1,120,2],[120,3,120,23],[112,10,112,12],[112,13,112,14],[112,15,112,17],[111,1,111,2],[111,3,111,4],[111,5,111,7],[111,8,111,9],[112,1,112,2],[112,3,112,4],[112,5,112,7],[112,8,112,9],[124,3,124,23],[128,1,128,23],[129,1,129,12],[129,13,129,22],[130,1,130,2],[130,3,130,12],[130,13,130,22],[121,1,121,2],[121,3,121,23],[122,1,122,2],[122,3,122,23],[123,1,123,2],[123,3,123,23],[125,3,125,23],[124,1,125,2],[133,1,133,2],[133,3,133,12],[133,13,133,22],[134,1,134,2],[134,3,134,12],[134,13,134,22],[131,1,131,2],[131,3,131,12],[131,13,131,22],[132,1,132,2],[132,3,132,12],[132,13,132,22],[137,1,137,2],[137,3,137,12],[137,13,137,22],[138,1,138,2],[138,3,138,12],[138,13,138,22],[135,1,135,2],[135,3,135,12],[135,13,135,22],[136,1,136,2],[136,3,136,12],[136,13,136,22],[150,2,150,23],[139,3,139,12],[139,13,139,22],[145,1,145,23],[146,2,146,23],[147,0,147,1],[147,2,147,23],[146,0,146,1],[139,1,140,2],[140,3,140,12],[140,13,140,22],[174,0,174,1],[174,2,174,23],[169,0,169,1],[169,2,169,23],[170,0,170,1],[170,2,170,23],[171,0,171,1],[171,2,171,23],[195,0,195,1],[195,2,195,8],[195,9,195,15],[195,17,195,23],[173,2,173,23],[178,0,178,23],[179,0,179,23],[181,2,181,23],[184,0,184,23],[185,1,188,22],[175,0,175,1],[175,2,175,23],[177,0,177,1],[177,2,177,23],[172,2,172,23],[173,0,173,1],[215,20,215,23],[211,0,211,23],[196,0,210,1],[217,1,217,4],[217,5,217,8],[217,9,217,12],[217,13,217,15],[217,17,217,19],[217,20,217,23],[210,9,210,15],[215,1,215,4],[215,5,215,8],[215,9,215,12],[230,12,230,23],[232,12,232,23],[247,18,250,23],[249,0,249,1],[249,2,249,7],[245,1,245,23],[246,0,246,1],[246,2,246,7],[246,8,246,10],[246,12,246,17],[246,18,246,23],[231,12,231,23],[239,0,239,2],[239,3,239,19],[253,18,256,23],[256,8,256,10],[255,0,255,1],[251,12,251,17],[252,12,252,17],[253,0,253,1],[251,8,251,10],[251,18,251,23],[252,8,252,10],[254,2,254,7],[253,2,253,7],[252,0,252,1],[252,2,252,7],[251,0,251,1],[251,2,251,7],[252,18,252,23],[256,0,256,1],[256,2,256,7],[258,0,258,1],[258,2,258,7],[248,0,248,1],[265,0,265,1],[265,2,265,7],[259,2,259,7],[257,12,260,17],[254,0,254,1],[255,2,255,7],[253,12,256,17],[248,2,248,7],[250,0,250,1],[250,2,250,7],[250,8,250,10],[247,12,250,17],[247,0,247,1],[265,12,268,17],[260,8,260,10],[267,0,267,1],[267,2,267,7],[265,18,268,23],[247,2,247,7],[230,0,232,10],[271,2,271,23],[257,0,257,1],[257,2,257,7],[261,0,261,1],[261,2,261,7],[260,0,260,1],[260,2,260,7],[262,0,262,1],[262,2,262,7],[263,0,263,1],[263,2,263,7],[261,12,264,17],[261,18,264,23],[266,0,266,1],[266,2,266,7],[264,0,264,1],[264,2,264,7],[268,0,268,1],[268,2,268,7],[259,0,259,1],[257,18,260,23],[88,1,88,23],[89,1,89,23],[94,10,94,17],[95,1,95,5],[95,7,95,9],[95,10,95,17],[90,1,90,23],[92,1,92,5],[92,7,92,9],[94,7,94,9],[93,1,93,5],[94,1,94,5],[96,10,96,17],[87,1,87,2],[225,1,225,23],[226,1,226,23],[227,1,227,23],[154,0,154,1],[154,2,154,23],[98,1,98,9],[101,1,101,17],[109,1,109,17],[196,2,197,8],[98,10,98,17],[191,7,191,9],[191,10,191,14],[155,0,155,1],[155,2,155,23],[151,0,151,1],[151,2,151,23],[152,0,152,1],[152,2,152,23],[148,0,148,1],[148,2,148,23],[149,0,149,1],[149,2,149,23],[191,0,191,6],[0,0,0,2],[206,2,209,8],[202,2,205,8],[198,2,201,8],[97,1,97,5],[97,7,97,9],[97,10,97,17],[92,10,92,17],[93,7,93,9],[93,10,93,17],[153,0,153,1],[153,2,153,23],[150,0,150,1],[96,1,96,5],[67,4,67,5],[67,7,67,8],[67,9,67,10],[66,1,66,10],[66,12,67,14],[68,4,68,5],[68,7,68,8],[68,9,68,10],[96,7,96,9]]}
[{"$f":"\"（\"&別紙１①!R20&\"）\"","v":"（別紙1）"}]
[]
["２号事業様式"]
["（中山間地域等直接支払交付金）"]
[]
["第１  集落協定の実施体制"]
[]
["１　集落協定の管理体制（構成員の役割分担）"]
[]
["役職名等",null,null,null,null,null,null,null,null,null,"氏名"]
["代表者",null,null,null,null,null,null,null,null,null,"中山間　太郎"]
["書記担当",null,null,null,null,null,null,null,null,null,"●●　●●"]
["会計担当",null,null,null,null,null,null,null,null,null,"●●　●●"]
["共同機械担当",null,null,null,null,null,null,null,null,null,"●●　●●"]
["土地改良施設担当",null,null,null,null,null,null,null,null,null,"●●　●●"]
["法面点検担当",null,null,null,null,null,null,null,null,null,"●●　●●"]
["注）事務作業が一部の者に集中して過大な負担となっていないか、事務作業を担う者への報酬が適正な水準となっているか等について、協定参加者で確認すること。"]
[]
["２　集落協定上の基幹的活動において中核的なリーダーとしての役割を果たす担い手として指定する者"]
[]
["氏　名",null,null,null,null,"実施要領の運用第６の１の(1)のオの役割",null,null,null,null,null,null,null,"活動の対象地区又は施設","活動内容"]
["○○　○○",null,null,null,null,"以下のア～ウのいずれかに〇をして下さい。\n\n ア  集落の取決めの実施等に当たっての集落全体の企画・立案・調整・取りまとめ\n\n イ 集落の取決めの実施に当たっての地区内の調整・合意形成・取りまとめ\n\n ウ 集落の取決めで定めた活動における地区又は施設単位の各種作業の計画立案・指導",null,null,null,null,null,null,null,"〇〇協定","○○の実施に当たって集落全体の企画・立案・取りまとめを行う"]
[null,null,null,null,null,"以下のア～ウのいずれかに〇をして下さい。\n\n ア  集落の取決めの実施等に当たっての集落全体の企画・立案・調整・取りまとめ\n\n イ 集落の取決めの実施に当たっての地区内の調整・合意形成・取りまとめ\n\n ウ 集落の取決めで定めた活動における地区又は施設単位の各種作業の計画立案・指導"]
[null,null,null,null,null,"以下のア～ウのいずれかに〇をして下さい。\n\n ア  集落の取決めの実施等に当たっての集落全体の企画・立案・調整・取りまとめ\n\n イ 集落の取決めの実施に当たっての地区内の調整・合意形成・取りまとめ\n\n ウ 集落の取決めで定めた活動における地区又は施設単位の各種作業の計画立案・指導"]
[null,null,null,null,null,"以下のア～ウのいずれかに〇をして下さい。\n\n ア  集落の取決めの実施等に当たっての集落全体の企画・立案・調整・取りまとめ\n\n イ 集落の取決めの実施に当たっての地区内の調整・合意形成・取りまとめ\n\n ウ 集落の取決めで定めた活動における地区又は施設単位の各種作業の計画立案・指導"]
[null,null,null,null,null,"以下のア～ウのいずれかに〇をして下さい。\n\n ア  集落の取決めの実施等に当たっての集落全体の企画・立案・調整・取りまとめ\n\n イ 集落の取決めの実施に当たっての地区内の調整・合意形成・取りまとめ\n\n ウ 集落の取決めで定めた活動における地区又は施設単位の各種作業の計画立案・指導"]
[null,null,null,null,null,"以下のア～ウのいずれかに〇をして下さい。\n\n ア  集落の取決めの実施等に当たっての集落全体の企画・立案・調整・取りまとめ\n\n イ 集落の取決めの実施に当たっての地区内の調整・合意形成・取りまとめ\n\n ウ 集落の取決めで定めた活動における地区又は施設単位の各種作業の計画立案・指導"]
[]
["当該協定における中核的リーダーの協定参加者に占める割合"]
["中核的リーダーの人数（人）",null,null,null,null,null,null,"協定参加者数（人）",null,null,null,null,null,"協定参加者に占める中核的リーダーの割合（％）"]
[]
["注）協定参加者に占める中核的リーダーの割合は、中核的リーダーの人数を協定参加者数で除した率とする。"]
[]
["第２  農用地の管理方法"]
[]
["　以下の項目のうち該当項目に○印を記入"]
["該 当",null,"内                 容"]
["(1) 農用地"]
[null,null,"①耕作者が農作業を継続できなくなった場合には、速やかに農業委員会のあっせんを受ける。"]
[null,null,"②農業公社が受託する。"]
["〇",null,"③集落協定参加者が協定内容に従って管理する。"]
[null,null,"④その他（　　　　　　　　　　　　　　　　）"]
[]
["該 当",null,"内                 容"]
["(2) 水路・農道等"]
[null,null,"①協定参加者全員で泥上げ、草刈りを行う。"]
["〇",null,"②集落申し合わせ事項により定期的な除草等の作業を行う。"]
[null,null,"③その他（別途の規約）(例：泥上げ、草刈り等の水路・農道の管理等は多面的機能支払交付金により行う。）\n（　　　　　　　　　　　　　　　　　　　　　　　　　　　　　　　　　　　　　　）"]
[]
["第３　協定対象となる農用地"]
["　（基本分）",null,null,null,null,null,null,null,null,null,null,null,null,null,null,null,null,null,null,"（単位：㎡）"]
["項目",null,"協定農用地\n面積",null,"田",null,null,null,null,"畑",null,null,null,null,"草地",null,null,null,null,"採草放牧地"]
[null,null,null,null,"面積","交付基準（傾斜等）","単価区分","上限\n単価","交付\n上限額","面積","交付基準（傾斜等）","単価区分","上限\n単価","交付\n上限額","面積","交付基準（傾斜等）","単価区分","上限\n単価","交付\n上限額","面積","交付基準（傾斜等）","単価区分","上限\n単価","交付\n上限額"]
["協定全体",null,null,null,null,"急傾斜",{"$f":"#REF!&別紙１④!$E$52&別紙１④!$F54","v":{"$error":"#REF!"}},null,null,null,"急傾斜",{"$f":"#REF!&$J$52&K54","v":{"$error":"#REF!"}},null,null,null,"急傾斜",{"$f":"#REF!&$O$52&P54","v":{"$error":"#REF!"}},null,null,null,"急傾斜",{"$f":"#REF!&$T$52&U54","v":{"$error":"#REF!"}}]
[null,null,null,null,null,"緩傾斜",{"$f":"#REF!&別紙１④!$E$52&別紙１④!$F55","v":{"$error":"#REF!"}},null,null,null,"緩傾斜",{"$f":"#REF!&$J$52&K55","v":{"$error":"#REF!"}},null,null,null,"緩傾斜",{"$f":"#REF!&$O$52&P55","v":{"$error":"#REF!"}},null,null,null,"緩傾斜",{"$f":"#REF!&$T$52&U55","v":{"$error":"#REF!"}}]
[null,null,null,null,null,"小区画・不整形",{"$f":"#REF!&別紙１④!$E$52&別紙１④!$F56","v":{"$error":"#REF!"}},null,null,null,"高齢化・耕作放棄率",{"$f":"#REF!&$J$52&K56","v":{"$error":"#REF!"}},null,null,null,"高齢化・耕作放棄率",{"$f":"#REF!&$O$52&P56","v":{"$error":"#REF!"}},null,null,null,"特認基準",{"$f":"#REF!&$T$52&U56","v":{"$error":"#REF!"}}]
[null,null,null,null,null,"高齢化・耕作放棄率",{"$f":"#REF!&別紙１④!$E$52&別紙１④!$F57","v":{"$error":"#REF!"}},null,null,null,"特認基準",{"$f":"#REF!&$J$52&K57","v":{"$error":"#REF!"}},null,null,null,"草地比率の高い草地",{"$f":"#REF!&$O$52&P57","v":{"$error":"#REF!"}},null,null,null,"交付対象外（田採草放牧地混在地）",{"$f":"#REF!&$T$52&U57","v":{"$error":"#REF!"}}]
[null,null,null,null,null,"特認基準",{"$f":"#REF!&別紙１④!$E$52&別紙１④!$F58","v":{"$error":"#REF!"}},null,null,null,"交付対象外（田畑混在地）",{"$f":"#REF!&$J$52&K58","v":{"$error":"#REF!"}},null,null,null,"特認基準",{"$f":"#REF!&$O$52&P58","v":{"$error":"#REF!"}},null,null,null,"交付対象外（田採草放牧地混在地以外）",{"$f":"#REF!&$T$52&U58","v":{"$error":"#REF!"}}]
[null,null,null,null,null,"交付対象外",{"$f":"#REF!&別紙１④!$E$52&別紙１④!$F59","v":{"$error":"#REF!"}},null,null,null,"交付対象外（田畑混在地以外）",{"$f":"#REF!&$J$52&K59","v":{"$error":"#REF!"}},null,null,null,"交付対象外（田草地混在地）",{"$f":"#REF!&$O$52&P59","v":{"$error":"#REF!"}}]
[null,null,null,null,null,null,null,null,null,null,null,null,null,null,null,"交付対象外（田草地混在地以外）",{"$f":"#REF!&$O$52&P60","v":{"$error":"#REF!"}}]
["計",null,{"$f":"E61+J61+O61+T61","v":0},null,{"$f":"SUM(E54:E60)","v":0},null,null,null,{"$f":"SUM(I54:I60)","v":0},{"$f":"SUM(J54:J60)","v":0},null,null,null,{"$f":"SUM(N54:N60)","v":0},{"$f":"SUM(O54:O60)","v":0},null,null,null,{"$f":"SUM(S54:S60)","v":0},{"$f":"SUM(T54:T60)","v":0},null,null,null,{"$f":"SUM(X54:X60)","v":0}]
[]
["　（加算措置に取り組む場合）"]
[]
["　１　棚田地域振興活動加算"]
[null,"棚田地域振興活動加算"]
[null,"面積（㎡）",null,null,null,null,null,null,null,null,null,null,"上限単価\n（円/10a）",null,null,"面積×上限単価\n（円）",null,null,null,"加算上限額\n（円）"]
[null,"田\n1/20以上",null,null,"畑\n15度以上",null,null,"田\n1/10以上",null,"畑\n20度以上"]
[null,null,null,null,null,null,null,null,null,null,null,null,10000,null,null,{"$f":"ROUNDDOWN((B69+E69)*M69/1000,0)","v":0},null,null,null,{"$f":"SUM(P69:S70)","v":0}]
[null,null,null,null,null,null,null,null,null,null,null,null,14000,null,null,{"$f":"ROUNDDOWN((H70+J70)*M70/1000,0)","v":0}]
[null,"注１）面積×上限単価（円）は、面積（㎡）の千分の一の値に上限単価（円/10a）を乗じた額とする。"]
[null,"注２）加算上限額（円）は、面積×上限単価（円）の合計額とする。"]
[]
["　２　超急傾斜農地保全管理加算"]
[null,"超急傾斜農地保全管理加算"]
[null,"面積（㎡）",null,null,null,null,null,null,"上限単価\n（円/10a）",null,null,null,null,"面積×上限単価\n（円）",null,null,null,null,"加算上限額\n（円）"]
[null,"田\n1/10以上",null,null,"畑\n20度以上"]
[null,null,null,null,null,null,null,null,6000]
[null,"注１）面積×上限単価（円）は、面積（㎡）の千分の一の値に上限単価（円/10a）を乗じた額とする。"]
[null,"注２）加算上限額（円）は、面積×上限単価（円）の合計額とする。"]
[]
["　３　ネットワーク化加算"]
[null,"ネットワーク化加算"]
[null,"面積（㎡）",null,null,null,null,null,null,null,null,"上限単価\n(円/10a)",null,null,"面積×上限単価\n（円）",null,"面積×上限単価の計\n（円）",null,null,"加算上限額\n（円）"]
[null,"田",null,"畑",null,"草地",null,null,"採草放牧地"]
[null,null,null,null,null,null,null,null,null,null,10000,null,null,null,null,null,null,null,null,null,1000000]
[null,null,null,null,null,null,null,null,null,null,4000]
[null,null,null,null,null,null,null,null,null,null,1000]
[null,"注１）面積×上限単価（円）は、面積（㎡）の千分の一の値に上限単価（円/10a）を乗じた額とする。"]
[null,"注２）加算上限額（円）は、面積×上限単価の計（円）及び100万円のうち、いずれか低い額とする。ただし、統合については、統合前の協定単位で上限を設定する。"]
[]
["　　ネットワーク化又は統合状況"]
[null,"ネットワーク化する集落協定名",null,null,null,null,null,"統合する集落協定名",null,null,"対象農用地面積（㎡）"]
[]
[]
[]
[]
[]
[null,"合計(　　　集落)"]
[]
["　　４　スマート農業加算"]
[null,"スマート農業加算"]
[null,"面積（㎡）",null,null,null,null,null,null,null,null,"上限単価\n(円/10a)",null,null,"面積×上限単価\n（円）",null,"加算上限額\n（円）"]
[null,"田",null,"畑",null,"草地",null,null,"採草放牧地"]
[null,null,null,null,null,null,null,null,null,null,5000,null,null,null,null,null,null,null,2000000]
[null,"注１）面積×上限単価（円）は、面積（㎡）の千分の一の値に上限単価（円/10a）を乗じた額とする。"]
[null,"注２）加算上限額（円）は、面積×上限単価（円）及び200万円のうち、いずれか低い額とする。"]
[]
["　　５　集落機能強化加算の経過措置"]
[null,"集落機能強化加算の経過措置"]
[null,"面積（㎡）",null,null,null,null,null,null,null,null,"上限単価\n(円/10a)",null,null,"面積×上限単価\n（円）",null,"加算上限額\n（円）"]
[null,"田",null,"畑",null,"草地",null,null,"採草放牧地"]
[null,null,null,null,null,null,null,null,null,null,3000,null,null,null,null,null,null,null,2000000]
[null,"注１）面積×上限単価（円）は、面積（㎡）の千分の一の値に上限単価（円/10a）を乗じた額とする。"]
[null,"注２）加算上限額（円）は、面積×上限単価（円）及び200万円のうち、いずれか低い額とする。"]
[]
["第４  集落マスタープラン（必須事項）"]
["　１　集落における将来像"]
[null,"　集落の目指すべき将来像に○印を記入する（複数可）。"]
[]
[null,null,null,"目指すべき将来像"]
[null,"〇",null,"①将来にわたり農業生産活動等が可能となる集落内の実施体制構築"]
[null,null,null,"②協定の担い手となる新たな人材の育成・確保"]
[null,null,null,"③協定参加者それぞれが、作物生産、加工・直売等さまざまな工夫により再生産可能な所得を確保"]
[null,null,null,"④その他（自由記載）"]
[null,null,null,"\n"]
[null,"注）④を選択する場合は将来像を記載。"]
[null,"２　将来像を実現するための目標と活動計画"]
[null,"　集落の目指すべき将来像を実現するための活動方策について○印を記入する（複数可）。また、活動方策に対する５年間の活動計画（目標）を記載する。"]
[null,"活動方策",null,null,null,null,null,null,null,null,null,null,null,"活動計画（目標）"]
[null,null,null,"機械・農作業の共同化等営農組織の育成"]
[null,null,null,"高付加価値型農業"]
[null,null,null,"農業生産条件の強化"]
[null,null,null,"担い手への農地集積"]
[null,null,null,"担い手への農作業の委託"]
[null,null,null,"新規就農者等による農業生産"]
[null,null,null,"地場産農産物等の加工・販売"]
[null,null,null,"消費・出資の呼び込み"]
[null,"〇",null,"共同で支え合う集団的かつ持続可能な体制整備",null,null,null,null,null,null,null,null,null,"農業の継続が困難となった農地が生じた場合に備えサポート体制を維持する。"]
[null,null,null,"その他（自由記載）",null,null,null,null,null,null,null,null,null,"（自由記載）"]
[]
[null,"注）体制整備単価の取組を行う協定については、第８との整合を図ること。"]
[]
["第５　農業生産活動等として取り組むべき事項"]
["　１  農用地に関する事項"]
[null,"　以下の項目から１項目以上（２で管理の対象とする水路・農道等が、多面的機能支払交付金実施要綱別紙１第５の２に基づく活動計画に定める施設と同一である場合は、２項目以上）を選択する。"]
[null,null,"　多面的機能支払交付金実施要綱別紙１第５の２に基づく活動計画に定める施設と同一。"]
["該 当",null,"具　体　的　に　取　り　組　む　行　為"]
[null,null,"①耕作放棄されそうな農用地については、集落内外の担い手農家や第３セクター等による利用権の設定等や農作業の委託を行う。"]
[null,null,"②既荒廃農地を協定農用地に含める場合には、荒廃農地の復旧又は畜産的利用を行う。"]
[null,null,"③既荒廃農地を協定農用地に含めない場合には、協定農用地に悪影響を与えないよう草刈り、防虫対策等の保全管理を行う。"]
["〇",null,"④農地法面の崩壊を未然に防止するため、集落内の担い手を中心に定期的な点検を行う。　"]
[null,null,"⑤協定農用地への柵、ネット等の設置等により鳥獣害防止対策を行う。"]
[null,null,"⑥作業道の設置、排水改良等簡易な基盤整備を行う。"]
[null,null,"⑦定農用地における農業生産活動が維持されるよう担い手（認定農業者、これに準ずるものとして市町村長が認定した者、第３セクター、特定農業法人、農業協同組合、生産組織等）を確保する。"]
[null,null,"⑧集落の新たな雇用創出や地域経済の活性化に資する地場農産物の加工・販売を行う。"]
[null,null,"⑨その他（土地改良事業、災害復旧及び地目変換（田から畑等へ）等）"]
[]
["　２  水路・農道等の管理方法（①②について該当する取組に○印を記入（複数可））"]
["具　体　的　に　取　り　組　む　行　為"]
["①水　路",null,null,"ア）水路清掃",null,null,null,"〇",null,"イ）草刈り",null,null,null,"〇",null,"ウ）その他（",null,null,null,null,null,null,null,"）"]
["②農　道",null,null,"ア）簡易補修",null,null,null,"〇",null,"イ）草刈り",null,null,null,"〇",null,"ウ）その他（",null,null,null,null,null,null,null,"）"]
["③その他"]
[]
[]
["　３　多面的機能を増進する活動として以下の項目から１項目以上選択し、実施する。"]
[null,"　以下の項目のうち該当項目に○印を記入する。"]
["該 当",null,"具　体　的　に　取　り　組　む　行　為"]
["〇",null,"①農地と一体となった周辺林地の下草刈り等を行う。"]
[null,null,"②棚田オーナー制度の実施、市民農園・体験農園の開設・運営を行う。"]
[null,null,"③景観作物を作付ける。"]
[null,null,"④土壌流亡に配慮した営農を行う（等高線栽培、根の張る植物を畝間に植栽）。"]
[null,null,"⑤体験民宿を実施する（グリーン・ツーリズム）。"]
[null,null,"⑥魚類・昆虫類の保護を行う（ビオトープの確保）。"]
[null,null,"⑦冬期の湛水化、不作付地での水張り等の鳥類の餌場の確保を図る。"]
[null,null,"⑧粗放的畜産を行う。"]
[null,null,"⑨堆きゅう肥の施肥、拮抗植物の利用、アイガモ・鯉の利用、輪作の徹底、緑肥作物の作付け等を行う。"]
[null,null,"⑩その他 （　　　　　　　　　　　　　　　　）"]
["注）法律で義務づけられている行為及び国庫補助事業の補助対象として行われる行為以外のものを１つ以上選択。"]
["注）上記１～３で定めた共同取組活動を行う際は、作業安全対策の観点から、以下の点に努めること。"]
[null,"・","作業環境の点検（作業前の危険箇所の確認・共有、機器の定期点検等）"]
[null,"・","共同取組活動で使用する機械又は使用頻度が高い機械（刈払機等）の安全な使用に関する取組の実施（研修・講習の開催又は参加等）"]
[]
[]
["第６　促進計画の「その他促進計画の実施に関し当該市町村が必要と認める事項」により\n　　規定すべき事項"]
[]
[]
[]
[]
[]
["第７  交付金の使用方法等"]
["　１　交付金は、集落を代表して",null,null,null,null,null,null,"中山間　太郎",null,null,"が市町村より受け取る。"]
[]
["　２　次の通り支出する。"]
[]
[null,null,"項　　　　　目",null,null,null,null,null,null,"交付金使途の内容(項目)",null,null,null,null,null,null,null,"金　額"]
["共同取組活動",null,"①役員等の各担当者の活動に対する経費\n(役員報酬、研修会開催費等)",null,null,null,null,null,null,"役員手当\n研修会開催費",null,null,null,null,null,null,null,"５０，０００円"]
[]
[null,null,"②農業生産活動等の体制整備に向けた活動等の集落マスタープランの将来像を実現するための活動に対する経費\n(農産物等の販促促進関係費、都市住民との交流促進関係費等)",null,null,null,null,null,null,"農産物等の販売促進関係費",null,null,null,null,null,null,null,"２００，０００円"]
[]
[]
[]
[null,null,"③水路、農道等の維持・管理等集落の共同取組活動に要する経費\n(道・道路管理費、農地管理費)",null,null,null,null,null,null,"水路農道等維持管理費",null,null,null,null,null,null,null,"３００，０００円"]
[]
[]
[]
[null,null,"④農用地の維持・管理活動を行う者に対する経費\n(鳥獣害防止対策費、共同利用機会購入費、共同利用施設整備費等)",null,null,null,null,null,null,"有機肥料代\n鳥獣被害防止対策費\n共同利用機会購入費等"]
[]
[]
[]
[null,null,"⑤毎年の積立額又は次年度への繰越予定額",null,null,null,null,null,null,"３のとおり"]
[]
["　３　交付金の積立・繰越に係る計画"]
["　　①　交付金の積立"]
["　　","（ｱ）積立計画"]
[null,null,null,null,null,"令和7年度",null,null,null,"令和8年度",null,null,null,"令和9年度",null,null,null,"令和10年度",null,null,"令和11年度"]
[null,"積立予定額",null,null,null,100000,null,null,null,"100,000円",null,null,null,"100,000円"]
[null,"積立累計額",null,null,null,"100,000円",null,null,null,"200,000円",null,null,null,"300,000円"]
[]
[null,"（ｲ）取り崩し予定等"]
[null,"　○ 取り崩し予定年度：令和９年度(協定期間内)"]
[null,"　○ 取り崩し予定年度における積立累計額：　300,000円　"]
[null,"　○ 使途：(例：乗用草刈り機購入等)　　　　　　　　　　　　　　　　　"]
[]
["　　②　次年度への繰越"]
[null,"　○ 繰越予定年度： 令和１１年度(当該年度の翌年度)"]
[null,"　○ 繰越予定額：200,000円　"]
[null,"　○ 使途：(災害発生が想定される箇所の復旧等)　　災害発生時の普及　　　　　に要する経費（具体的に記入）"]
[]
["　４　次のとおり支出する。"]
["個 人 配 分 分",null,null,null,null,null,null,null,null,null,null,null,"金　額"]
[null,null,null,null,null,null,null,null,null,null,null,null,"（配分割合：５０　％)"]
[null,null,null,null,null,null,null,null,null,null,null,null,"５００，０００　　　　　　円　"]
[]
["　【体制整備単価の場合に使用】"]
[]
["第８  農業生産活動等の体制整備として取り組むべき事項（体制整備単価交付必須事項）"]
[null,"　ネットワーク化活動計画を作成する。"]
["該 当",null,null,"取　り　組　む　べ　き　事　項"]
["〇",null,null,"別紙様式２に定めるネットワーク化活動計画を令和11年度までに作成する。"]
[]
[]
["　【加算措置の場合に使用】 "]
[]
["第９　加算措置適用のために取り組むべき事項（加算措置必須要件）"]
[null,"　次の活動のうち集落として取り組む項目に○印を記入するとともに、取組期間、現状及び達成目標について具体的に記載し、実施する。"]
["該 当",null,"項　　　目",null,null,null,null,null,"取組期間",null,null,null,"現状",null,null,null,null,null,"達成目標"]
[{"$f":"IF(T69>0,\"〇\",\"\")","v":""},null,"①棚田地域振興活動加算",null,null,null,null,null,"令和",null,"年度",null,null,null,null,null,null,null,"[ア　棚田等の保全]\n"]
[null,null,null,null,null,null,null,null,null,"～"]
[null,null,null,null,null,null,null,null,"令和",null,"年度"]
[{"$f":"IF(S68>0,\"〇\",\"\")","v":""}]
[null,null,null,null,null,null,null,null,null,null,null,null,null,null,null,null,null,null,"[イ　棚田等の保全を通じた多面にわたる機能の維持・発揮]\n"]
[null,null,null,null,null,null,null,null,null,null,null,null,null,null,null,null,null,null,"[ウ　棚田を核とした棚田地域の振興]\n"]
[{"$f":"IF(S78>0,\"〇\",\"\")","v":""},null,"②超急傾斜農地保全管理加算",null,null,null,null,null,"令和",null,"年度",null,null,null,null,null,null,null,"［超急傾斜農地の保全］\n\n\n\n\n［農産物の販売促進等］\n"]
[null,null,null,null,null,null,null,null,null,"～"]
[null,null,null,null,null,null,null,null,"令和",null,"年度"]
[{"$f":"IF(S73>0,\"〇\",\"\")","v":""}]
[{"$f":"IF(S86>0,\"〇\",\"\")","v":""},null,"③ネットワーク化加算",null,null,null,null,null,"令和",null,"年度",null,null,null,null,null,null,null,"［ネットワーク化・統合等により実現する農業生産活動等の継続のための取組］\n"]
[null,null,null,null,null,null,null,null,null,"～"]
[null,null,null,null,null,null,null,null,"令和",null,"年度"]
[]
[{"$f":"IF(P105>0,\"〇\",\"\")","v":""},null,"④スマート農業加算",null,null,null,null,null,"令和",null,"年度",null,null,null,null,null,null,null,"[スマート農業による作業の省力化・効率化を図る取組]\n"]
[null,null,null,null,null,null,null,null,null,"～"]
[null,null,null,null,null,null,null,null,"令和",null,"年度"]
[]
[{"$f":"IF(P113>0,\"〇\",\"\")","v":""},null,"⑤集落機能強化加算の経過措置",null,null,null,null,null,"令和",null,"年度",null,null,null,null,null,null,null,"［新たな人材の確保に関する取組］\n\n\n\n\n\n\n\n[集落機能を強化する取組]\n\n\n"]
[null,null,null,null,null,null,null,null,null,"～"]
[null,null,null,null,null,null,null,null,"令和",null,"年度"]
[{"$f":"IF(S82>0,\"〇\",\"\")","v":""}]
[]
[null,"注１）","現状は、取組期間の開始年度における地域の現状を記載する。"]
[null,"注２）","達成目標は、取組期間の最終年度までに達成される地域の現状を踏まえた定量的な目標を記載する。なお、②については、取組期間の最終年度までに達成される地域の現状を踏まえた目標を記載する。"]

{"sheet":"別紙３","index":5,"n_rows":6,"n_cols":34,"rows_kept":6,"cut":false,"hidden":false,"merged":[[4,28,4,33],[5,11,5,17],[5,18,5,27],[5,28,5,33],[2,18,2,27],[2,28,2,33],[3,18,3,27],[3,28,3,33],[4,18,4,27],[5,1,5,4],[5,5,5,10],[2,1,2,4],[2,5,2,10],[2,11,2,17],[3,1,3,4],[3,5,3,10],[3,11,3,17],[4,1,4,4],[4,5,4,10],[4,11,4,17]]}
[null,null,null,null,null,null,null,null,null,null,null,null,null,null,null,null,null,null,null,null,null,null,null,null,null,null,null,null,null,null,null,null,null,"（別紙様式３）"]
[null,"協定対象施設の管理方法"]
[null,"区   分",null,null,null,"施　 　設",null,null,null,null,null,"管理作業者",null,null,null,null,null,null,"管理方法等",null,null,null,null,null,null,null,null,null," 管理作業の\n 代  表  者"]
[null,"用水路",null,null,null,"○○用水路\n（水路の延長○m)",null,null,null,null,null,"集落協定参加者",null,null,null,null,null,null,"●●集落協定の申し合わせ事項による",null,null,null,null,null,null,null,null,null,"中山間　太郎"]
[null,"排水路",null,null,null,"○○排水路\n（水路の延長○m)",null,null,null,null,null,"集落協定参加者",null,null,null,null,null,null,"●●集落協定の申し合わせ事項による",null,null,null,null,null,null,null,null,null,"代表者\n●●●●"]
[null,"道　路",null,null,null,"○○農道\n（水路の延長○m)",null,null,null,null,null,"●●地区水利組合",null,null,null,null,null,null,"●●集落協定の申し合わせ事項による",null,null,null,null,null,null,null,null,null,"代表者\n●●●●"]

{"sheet":"別紙８","index":6,"n_rows":49,"n_cols":10,"rows_kept":49,"cut":false,"hidden":false,"merged":[[5,1,6,1],[5,2,6,2],[5,3,6,3],[5,4,6,4],[11,1,14,1],[11,2,14,2],[11,3,14,3],[11,4,14,4],[7,1,10,1],[7,2,10,2],[7,3,10,3],[7,4,10,4],[8,8,10,8],[5,6,7,6],[5,7,7,7],[5,8,7,8],[5,9,7,9],[8,6,10,6],[8,7,10,7],[8,9,10,9],[16,1,17,1],[16,2,17,2],[16,3,17,3],[16,4,17,4],[18,1,21,1],[18,2,21,2],[18,3,21,3],[18,4,21,4],[27,3,28,3],[27,4,28,4],[22,1,25,1],[22,2,25,2],[22,3,25,3],[22,4,25,4],[22,9,26,9],[43,1,45,1],[43,2,45,2],[43,3,45,3],[43,4,45,4],[29,1,33,1],[29,2,33,2],[29,3,33,3],[29,4,33,4],[34,1,39,1],[34,2,39,2],[34,3,39,3],[34,4,39,4],[41,4,42,4],[27,1,28,1],[27,2,28,2],[12,9,13,9],[14,6,17,6],[14,7,17,7],[14,8,17,8],[14,9,17,9],[22,6,26,6],[22,7,26,7],[12,6,13,6],[12,7,13,7],[12,8,13,8],[39,7,40,7],[39,8,40,8],[39,9,40,9],[3,8,3,9],[35,6,38,6],[33,6,34,6],[33,7,34,7],[33,8,34,8],[33,9,34,9],[35,9,38,9],[28,6,29,6],[28,7,29,7],[28,8,29,8],[28,9,29,9],[30,9,32,9],[18,9,21,9],[2,3,2,8],[47,1,47,8],[48,1,48,8],[35,7,38,7],[35,8,38,8],[30,6,32,6],[30,7,32,7],[30,8,32,8],[22,8,26,8],[18,6,21,6],[18,7,21,7],[18,8,21,8],[41,1,42,1],[41,2,42,2],[41,3,42,3],[39,6,40,6]]}
[null,null,null,null,null,null,null,null,null,"（ 別紙様式８ ）"]
[]
[null,null,null,"環境負荷低減のチェックシート（集落協定向け）"]
[null,null,null,null,null,null,null,null,"（　　あいうえお　　集落協定）"]
[]
[null,null,"申請時\n（します）","（１）適正な施肥","報告時\n（しました）",null,null,"申請時\n（します）","（５）廃棄物の発生抑制、\n　　 適正な循環的な利用及び適正な処分","報告時\n（しました）"]
[]
[null,"①","☑","※共同取組活動で施肥を行う場合\n肥料の適正な保管\n（該当しない　　　）","□"]
[null,null,null,null,null,null,"⑧","☑","共同取組活動を行う場合には、\nプラ等廃棄物の削減に努め、適正に処理","□"]
[]
[]
[null,"②","☑","※共同取組活動で施肥を行う場合\n肥料の使用状況等の記録・保存に努める\n（該当しない　　　）","□"]
[null,null,null,null,null,null,null,"申請時\n（します）","（６）生物多様性への悪影響の防止","報告時\n（しました）"]
[]
[null,null,null,null,null,null,"⑨","☑","※共同取組活動で農薬を使った防除を行う場合\n農薬の適正な使用・保管\n（該当しない　　　）","□"]
[]
[null,null,"申請時\n（します）","（２）適正な防除","報告時\n（しました）"]
[]
[null,"③","☑","※共同取組活動で農薬を使った防除を行う場合\n農薬の適正な使用・保管\n（該当しない　　　）","□",null,"⑩","☑","※共同取組活動で農薬を使った防除を行う場合\n農薬の使用状況等の記録・保存\n（該当しない　　　）","□"]
[]
[]
[]
[null,"④","☑","※共同取組活動で農薬を使った防除を行う場合\n農薬の使用状況等の記録・保存\n（該当しない　　　）","□",null,"⑪","☑","※生物多様性への影響が想定される工事等を\n　 実施する場合\n生物多様性に配慮した事業実施に努める\n（該当しない　　　）","□"]
[]
[]
[]
[]
[null,null,"申請時\n（します）","（３）エネルギーの節減","報告時\n（しました）"]
[null,null,null,null,null,null,null,"申請時\n（します）","（７）環境関係法令の遵守等","報告時\n（しました）"]
[null,"⑤","☑","※共有資産として入手した50万円以上の農機等が\n　 ある場合\n農機等の燃料の使用状況の記録・保存に努める\n（該当しない　　　）","□"]
[null,null,null,null,null,null,"⑫","☑","「みどりの食料システム戦略」を理解し、適切な事業実施に努める","□"]
[]
[]
[null,null,null,null,null,null,"⑬","☑","関係法令の遵守","□"]
[null,"⑥","☑","※共有資産として入手した50万円以上の農機等が\n　 ある場合\n省エネを意識し、不必要・非効率なエネルギー消費をしないよう努める\n（該当しない　　　）","□"]
[null,null,null,null,null,null,"⑭","☑","※機械等を扱う事業者である場合\n機械等の適切な整備と管理に努める\n（該当しない　　　）","□"]
[]
[]
[]
[null,null,null,null,null,null,"⑮","☑","正しい知識に基づく作業安全に努める","□"]
[]
[null,null,"申請時\n（します）","（４）悪臭及び害虫の発生防止","報告時\n（しました）"]
[]
[null,"⑦","☑","共同取組活動を行う場合には、\n悪臭・害虫の発生防止・低減に努める","□"]
[]
[]
[]
[null,"注１　申請時は「します」の□、報告時は「しました」の□にチェックしてください。"]
[null,"注２　「※」の記載内容に該当しない場合は「（該当しない　□）」にチェックしてください。\n　　　この場合、当該項目の申請時・報告時のチェックは不要です。"]

{"sheet":"別紙２②（ネットワーク化活動計画）","index":7,"n_rows":22,"n_cols":12,"rows_kept":22,"cut":false,"hidden":false,"merged":[[1,1,1,13],[5,1,5,12],[8,1,8,4],[8,5,8,11],[9,1,9,4],[9,5,9,11],[10,1,10,4],[10,5,10,11],[11,1,11,4],[11,5,11,11],[12,1,12,11],[15,1,15,2],[15,3,15,5],[15,6,15,10],[15,11,15,12],[16,1,17,2],[16,3,17,5],[16,6,16,10],[16,11,17,12],[17,6,17,10],[18,1,19,2],[18,3,19,5],[18,6,18,10],[18,11,18,12],[19,6,19,10],[19,11,19,12],[20,1,20,2],[20,3,20,5],[20,6,20,10],[20,11,20,12],[21,1,21,12]]}
[]
[null,"○ネットワーク化活動計画①"]
[]
["１．体制整備の基本方針"]
[null,"１－１．集落協定名"]
[null,"あいうえお集落協定"]
[]
[null,"１－２．ネットワーク化活動計画作成時点"]
[null,"当初",null,null,null,"令和９年７月"]
[null,"第１回変更"]
[null,"第２回変更"]
[null,"第３回変更"]
[null,"注１）本計画を作成したときは、遅滞なく協定農用地の存する市町村に提出すること。\n\n注２）２－２のネットワークに参加する集落協定、３－２の統合に参加する集落協定、３－６の役員の継承計画、４－１の協定活動に参画する多様な組織等に変更が必要になった場合や、計画内容の大幅な変更が必要になった場合は本計画の変更を行い市町村に提出すること。"]
[]
[null,"１－３．体制整備のために行おうとする取組"]
[null,"該当注１）",null,"取組",null,null,"対象協定",null,null,null,null,"要記載項目"]
[null,"○",null,"①ネットワーク化注２）",null,null,"新たにネットワーク化を行い10ha以上のネットワークを形成する集落協定",null,null,null,null,"２－１～２－７"]
[null,null,null,null,null,null,"新たにネットワーク化を行う予定はないが、既に10ha以上のネットワークを形成しており、体制の維持、向上を図ろうとする集落協定"]
[null,null,null,"②統合注３）",null,null,"新たに統合を行い10ha以上の集落協定を形成する集落協定",null,null,null,null,"３－１～３－５"]
[null,null,null,null,null,null,"新たに統合を行う予定はないが、既に10ha以上の集落協定となっており、体制の維持、向上を図ろうとする集落協定",null,null,null,null,"３－２、\n３－６、３－７"]
[null,null,null,"③多様な組織等の参画注４）",null,null,"１組織以上の農業者団体以外の組織又は構成員の10%以上の非農業者が活動に参画する集落協定",null,null,null,null,"４－１～４－３"]
[null,"注１）該当する取組を全て選択すること。\n\n注２）「ネットワーク化」とは、複数の集落協定間において活動の連携体制を構築することをいう。「新たにネットワーク化を行う予定はないが、既に10ha以上のネットワークを形成しており、体制の維持、向上を図ろうとする集落協定」の場合は、計画作成時点で10ha以上のネットワークを形成していること。ネットワーク化は自協定が存する地域計画区域内の他の集落協定と行うことを基本とするが、自協定が存する地域計画区域内に他の集落協定がない場合など、合理的な理由がある場合は、他の地域計画区域内に存する集落協定とネットワーク化することも可とする。\n\n注３）「統合」とは、他の集落協定と１つの集落協定に統合することをいう。「新たに統合を行う予定はないが、既に10ha以上の集落協定となっており、体制の維持、向上を図ろうとする集落協定」の場合は、計画作成時点で10ha以上の集落協定となっていること。統合は自協定が存する地域計画区域内の他の集落協定と行うことを基本とするが、自協定が存する地域計画区域内に他の集落協定がない場合など、合理的な理由がある場合は、他の地域計画区域内に存する集落協定と統合することも可とする。\n\n注４）「多様な組織等の参画」とは、農業者団体以外の組織や非農業者が集落協定の活動に参画するこという。参画にあたっては、集落協定の構成員となるか、別途で協定等を結ぶこと。計画作成時点で１組織以上の農業者団体以外の組織又は構成員の10%以上の非農業者が活動に参画していること。"]

{"sheet":"別紙２③（ネットワーク化）","index":8,"n_rows":71,"n_cols":14,"rows_kept":71,"cut":false,"hidden":false,"merged":[[0,0,0,14],[2,1,2,13],[5,1,5,12],[8,1,9,4],[8,5,9,6],[8,7,8,10],[8,11,8,12],[9,7,9,8],[9,9,9,10],[10,1,10,4],[10,5,10,6],[10,7,10,8],[10,9,10,10],[11,1,11,4],[11,5,11,6],[11,7,11,8],[11,9,11,10],[12,1,12,4],[12,5,12,6],[12,7,12,8],[12,9,12,10],[13,1,13,4],[13,5,13,6],[13,7,13,8],[13,9,13,10],[14,1,14,4],[14,5,14,6],[14,7,14,8],[14,9,14,10],[15,1,15,13],[18,1,18,2],[18,3,18,6],[18,7,18,8],[18,9,18,12],[19,1,19,2],[19,3,19,6],[19,7,19,8],[19,9,19,12],[20,1,20,2],[20,3,20,6],[20,7,20,8],[20,9,20,12],[21,1,21,2],[21,3,21,6],[21,7,22,8],[22,1,22,2],[22,3,22,6],[22,9,22,12],[23,1,23,12],[24,1,24,12],[27,1,27,2],[27,3,27,6],[27,7,27,8],[27,9,27,11],[28,1,29,2],[28,3,29,6],[28,7,28,8],[28,9,28,11],[29,7,29,8],[29,9,29,11],[30,1,30,2],[30,3,30,6],[30,7,30,8],[30,9,30,11],[31,1,31,2],[31,3,31,6],[31,7,31,8],[31,9,31,11],[32,1,32,2],[32,3,32,6],[32,7,33,8],[33,1,33,2],[33,3,33,6],[33,9,33,11],[35,0,35,14],[37,1,37,2],[37,3,37,5],[37,6,37,7],[37,8,37,11],[38,1,38,2],[38,3,38,5],[38,6,38,7],[38,8,38,11],[39,1,39,2],[39,3,39,5],[39,6,39,7],[39,9,39,10],[40,1,40,10],[43,1,43,13],[44,1,44,6],[45,1,45,6],[46,1,46,6],[47,1,49,6],[50,1,50,6],[51,1,51,6],[52,1,60,13],[61,1,61,13],[64,1,64,2],[64,3,64,10],[65,1,65,2],[65,3,65,10],[69,1,69,2],[69,3,69,10],[70,1,70,2],[70,5,70,9],[66,1,66,2],[66,3,66,10],[67,1,67,2],[67,3,67,10],[68,1,68,2],[68,3,68,10]]}
["○ネットワーク化活動計画②"]
["２．ネットワーク化の計画"]
[null,"注１）ネットワーク化を行っている、又は行おうとする他の集落協定のネットワーク化活動計画におけるネットワーク化の計画と整合がとれたものとすること。\n\n注２）２－１～２－７の全てを記載すること。"]
[]
[null,"２－１．ネットワークの名称（予定）"]
[null,"●●ネットワーク協定(●●ネットワーク協議会)"]
[]
[null,"２－２．ネットワークに参加する集落協定"]
[null,"集落協定名",null,null,null,"協定面積",null,"地域計画",null,null,null,"現在の連携状況"]
[null,null,null,null,null,null,null,"自協定が存する計画区域内",null,"別の計画区域内",null,"連携済","今後連携"]
[null,"(自協定名)あいうえお集落協定","（自協定）","（自協定）","（自協定）",3.5]
[null,"Ｂ集落協定",null,null,null,5.2,null,"○",null,null,null,null,"○"]
[null,"Ｃ集落協定",null,null,null,1.3,null,"○",null,null,null,null,"○"]
[]
[null,"合計","合計","合計","合計",10]
[null,"注）合計協定面積は10ha以上であること。"]
[]
[null,"２－３．ネットワーク化で解決しようとする課題"]
[null,"該当",null,null,null,null,null,"該当"]
[null,"　",null,"①リーダーの人材不足",null,null,null,"○",null,"⑤農作業機械や施設の不足"]
[null,"○",null,"②事務担当者の人材不足",null,null,null,null,null,"⑥知見や技術の不足"]
[null,null,null,"③共同取組活動参加者の附則",null,null,null,"　",null,"⑦その他（※内容は↓欄に記載ください）"]
[null,"○",null,"④農業の担い手の人材不足"]
[null,"（該当する課題について詳細を記載）\n②現在の事務担当者は70歳代で高齢であるが、後継者が見つからず10年間、事務担当を担っている。あと数年のうちに後継者を確保する必要がある。\n④高齢で小規模な自給的農家や兼業農家が協定内の農地の多くを担っている。あと５年のうちに引退を希望する農業者が複数いるが、農地の引き受け手の見込みが立っていない。\n⑥農地の担い手を育成するため、施設園芸の導入に取り組みたい。また、販路拡大のため、加工品の販売にも取り組みたいが、協定内に加工や販売の知見を持っている人材がいない。"]
[null,"注）地域計画や集落マスタープラン、第５期対策で作成した集落戦略に位置付けられた内容を踏まえて検討すること。"]
[]
[null,"２－４．ネットワーク化により連携して実施する活動"]
[null,"該当",null,"連携して実施する活動",null,null,null,"該当",null,"連携して実施する活動"]
[null,"○",null,"①事務の一元化（共同事務局の設置や外部委託）",null,null,null,null,null,"⑥農業の担い手育成"]
[null,null,null,null,null,null,null,null,null,"⑦地場農産物の加工・販売"]
[null,"○",null,"②農地保全（草刈り、荒廃防止活動等）",null,null,null,"○",null,"⑧鳥獣害対策"]
[null,null,null,"③水路・農道等の維持管理",null,null,null,null,null,"⑨多面的機能を増進する活動"]
[null,null,null,"④機械・施設の共同利用",null,null,null,null,null,"⑩その他（※内容は↓欄に記載ください　）"]
[null,null,null,"⑤農作業の共同化"]
[]
["○ネットワーク化活動計画③"]
[null,"２－５．連携方法"]
[null,"該当",null,"連携方法",null,null,"該当",null,"連携方法"]
[null,"○",null,"①協議会型注１）",null,null,"　",null,"③共同委託型注３）"]
[null,null,null,"②活動連携型注２）",null,null,"　",null,"④その他（",null,null,"　　　）"]
[null,"注１）協議会、委員会等を設置し、ネットワークでの活動の調整や事務等を行う場合。\n\n注２）作業の共同化や機械・施設の共同利用などの共通のルールを覚書等で定めるなどにより連携した活動を行う場合。\n\n注３）各集落協定から同一の外部団体又は同一の外部人材に同じ活動を委託する場合。"]
[]
[null,"２－６．ネットワーク化の工程"]
[null,"（工程の概略）"]
[null,"取組",null,null,null,null,null,"R6以前","R7","R8","R9","R10","R11","R12以降"]
[null,"ネットワーク化に向けた話合い（協定内）",null,null,null,null,null,null,"○","○","○"]
[null,"ネットワーク化に向けた話合い（協定間）",null,null,null,null,null,null,null,"○","○"]
[null,"ネットワーク化により連携して実施する活動の開始注）",null,null,null,null,null,null,null,null,"①",null,"⑧"]
[null,null,null,null,null,null,null,null,null,null,"②"]
[]
[null,"協議会等の設置（協議会型の場合）",null,null,null,null,null,null,null,null,"○"]
[null,"ネットワーク化加算の適用（加算措置を利用する場合）"]
[null,"（２－２～２－５を踏まえたネットワーク化の進め方を記載）\n・令和７年度から協定内で話し合いを進め、B協定、C協定とのネットワークに加えられないか検討した。\n・令和８年度にはB協定、C協定を含めて事務の一元化、草刈り活動などの連携、広域的な鳥獣害対策の実現に向けて協議を行った。\n・令和９年度に、ネットワーク化活動計画を作成し、市へ提出する。また、事務の一元化や共同での草刈り活動を行う。\n・令和１０年度以降も同様の取り組みを進め、鳥獣害対策を広域的に柵の設置や補修、見回り等を行う。\n・令和１２年度以降は、ネットワークの拡大や集落協定の統合を検討する。"]
[]
[]
[]
[]
[]
[]
[]
[]
[null,"注）工程の概略における「ネットワーク化により連携して実施する活動の開始」には２－４の「ネットワーク化により連携して実施する活動」の番号を記載。"]
[]
[null,"２－７．ネットワーク化後の統合予定"]
[null,"該当",null,"統合の予定"]
[null,"　",null,"①第６期対策期間中（令和７年度～令和11年度）での統合を検討する"]
[null,"○",null,"②第６期対策終了後の令和12年度以降での統合を検討する"]
[null,"　",null,"③時期は未定だが将来的に統合を検討する"]
[null,"　",null,"④未定"]
[null,"　",null,"⑤統合は必要ないと考えている"]
[null,"　",null,"⑥その他（",null,null,null,null,null,null,"　）"]

{"sheet":"別紙２④（統合）","index":9,"n_rows":58,"n_cols":14,"rows_kept":58,"cut":false,"hidden":false,"merged":[[0,0,0,14],[2,1,2,13],[5,1,5,12],[8,1,9,4],[8,5,9,6],[8,7,8,10],[9,7,9,8],[9,9,9,10],[10,1,10,4],[10,5,10,6],[10,7,10,8],[10,9,10,10],[11,1,11,4],[11,5,11,6],[11,7,11,8],[11,9,11,10],[12,1,12,4],[12,5,12,6],[12,7,12,8],[12,9,12,10],[13,1,13,4],[13,5,13,6],[13,7,13,8],[13,9,13,10],[14,1,14,4],[14,5,14,6],[14,7,14,8],[14,9,14,10],[15,1,15,10],[18,1,18,2],[18,3,18,6],[18,7,18,8],[18,9,18,12],[19,1,19,2],[19,3,19,6],[19,7,19,8],[19,9,19,12],[20,1,20,2],[20,3,20,6],[20,7,20,8],[20,9,20,12],[21,1,21,2],[21,3,21,6],[21,7,22,8],[21,9,21,12],[22,1,22,2],[22,3,22,6],[22,9,22,12],[23,1,23,12],[24,1,24,12],[27,1,27,2],[27,3,27,6],[27,7,27,8],[27,9,27,12],[28,1,28,2],[28,3,28,6],[28,7,28,8],[28,9,28,12],[29,1,29,2],[29,3,29,6],[29,7,29,8],[29,9,29,12],[30,1,30,2],[30,3,30,6],[30,7,30,8],[30,9,30,12],[31,1,31,2],[31,3,31,6],[31,7,31,8],[31,9,31,12],[32,1,32,2],[32,3,32,6],[32,7,33,8],[32,9,32,12],[33,1,33,2],[33,3,33,6],[33,9,33,12],[35,0,35,14],[37,1,37,13],[38,1,38,6],[39,1,39,6],[40,1,40,6],[41,1,41,6],[42,1,42,6],[43,1,43,13],[46,1,46,2],[46,3,46,5],[46,6,46,8],[46,9,46,11],[47,1,47,2],[47,3,47,5],[47,6,47,8],[48,1,48,2],[48,3,48,5],[48,6,48,8],[49,1,49,2],[49,3,49,5],[49,6,49,8],[50,1,50,2],[50,3,50,5],[50,6,50,8],[53,1,53,11],[56,1,56,11],[57,1,57,11],[51,1,51,2],[51,3,51,5],[51,6,51,8],[52,1,52,2],[52,3,52,5],[52,6,52,8]]}
["○ネットワーク化活動計画④"]
["３．統合の計画"]
[null,"注１）統合をこれから行う場合は、統合を行おうとする他の集落協定のネットワーク化活動計画における統合の計画と整合がとれたものとすること。\n\n注２）「新たに統合を行い10ha以上の集落協定を形成する集落協定」は、３－１～３－５を記載すること。「新たに統合を行う予定はないが、既に10ha以上の集落協定となっており、体制の維持、向上を図ろうとする集落協定」は、３－２、３－６、３－７を記載すること。"]
[]
[null,"３－１．統合後の集落協定の名称（予定）"]
[null,"●●広域集落協定"]
[]
[null,"３－２．統合に参加する集落協定"]
[null,"集落協定名",null,null,null,"協定面積",null,"地域計画"]
[null,null,null,null,null,null,null,"自協定が存する計画区域内",null,"別の計画区域内"]
[null,"(自協定名)あいうえお集落協定","（自協定）","（自協定）","（自協定）",3.5]
[null,"Ｂ集落協定",null,null,null,5.2,null,"○",null,"　"]
[null,"Ｃ集落協定",null,null,null,1.3,null,"○",null,"　"]
[null,null,null,null,null,null,null,null,null,"　"]
[null,"合計","合計","合計","合計"]
[null,"注１）合計協定面積は10ha以上であること。\n\n注２）統合する予定がない場合は自協定のみ記載すること。"]
[]
[null,"３－３．統合で解決しようとする課題"]
[null,"該当",null,null,null,null,null,"該当"]
[null,"○",null,"①リーダーの人材不足",null,null,null,"　",null,"⑤農作業機械や施設の不足"]
[null,null,null,"②事務担当者の人材不足",null,null,null,"　",null,"⑥知見や技術の不足"]
[null,"○",null,"③共同取組活動参加者の不足",null,null,null,"○",null,"⑦その他（※内容は↓欄に記載ください）"]
[null,null,null,"④農業の担い手の人材不足",null,null,null,null,null,"農作業機械の老朽化及びオペレーターの不足"]
[null,"（該当する課題について詳細を記載）\n①代表者が固定化されており、後継者の確保の目途が立っていない。\n③構成員には若手が２名いるが、その他の構成員は高齢であり、共同取組活動の作業負担が２名の若手の集中する傾向がある。\n⑦集落協定内の農業者が所有する農作業機械の老朽化が進んでいる。現在は農業者間の貸し借りでなんとかまかなっているが、今後故障する機械が増えれば、農作業機械の確保が困難になる。また、世代交代が行われた小規模農業者から作業委託のニーズが増えているが、農作業を受託できるオペレーターが減ってきている。"]
[null,"注）地域計画や集落マスタープラン、第５期対策で作成した集落戦略に位置付けられた内容を踏まえて検討すること。"]
[]
[null,"３－４．統合により体制を強化したい活動"]
[null,"該当",null,"体制を強化したい活動",null,null,null,"該当",null,"体制を強化したい活動"]
[null,"○",null,"①リーダー等の人材確保",null,null,null,"　",null,"⑦農業の担い手育成"]
[null,null,null,"②事務局機能の強化",null,null,null,"　",null,"⑧地場農産物の加工・販売"]
[null,"○",null,"③農地保全（草刈り、荒廃防止活動等）",null,null,null,"　",null,"⑨鳥獣害対策"]
[null,"○",null,"④水路・農道等の維持管理",null,null,null,null,null,"⑩多面的機能を増進する活動"]
[null,null,null,"⑤機械・施設の共同利用",null,null,null,"○",null,"⑪その他（※内容は↓欄に記載ください）"]
[null,"　",null,"⑥農作業の共同化",null,null,null,null,null,"農作業機械のオペレーターの確保"]
[]
["○ネットワーク化活動計画⑤"]
[null,"３－５．統合の工程"]
[null,"（工程の概略）"]
[null,"取組",null,null,null,null,null,"R6以前","R7","R8","R9","R10","R11","R12以降"]
[null,"①統合に向けた話合い（協定内）",null,null,null,null,null,null,"○","○","○"]
[null,"②統合に向けた話合い（協定間）",null,null,null,null,null,null,null,"○","○"]
[null,"③統合",null,null,null,null,null,null,null,null,"○"]
[null,"④ネットワーク化加算の適用（加算措置を利用する場合）"]
[null,"（３－２～３－４を踏まえた統合の進め方を記載）\n・令和７年度から協定内で話し合いを進め、リーダー確保や、農地保全などの課題を解消するためB協定、C協定と統合を検討した。\n・令和８年度初旬の集落協定総会において、統合の方向性について承認が得られたため、B集落協定、C集落協定と統合後の活動計画や個人配分、作業日当等のルールについて意見調整を行った。\n・令和９年度初旬の総会において統合の承認をとり、令和９年度内にネットワーク活動計画を提出する。\n・草刈等の作業が一部の構成員に集中しないように、旧集落協定間で人手を出し合う体制を構築するとともに、土地持ち非農家の参加も呼び掛けるようにする。\n・農作業機械については、協定内で引退する農家から農作業機械を集約し、機械共同利用組合を立ち上げる。ネットワーク化加算を利用して、共同利用する農作業機械の保管庫を整備する。Ｆ集落協定内のＵターン予定者を機械共同利用組合の管理者兼オペレーターに育成し、統合した集落協定の「主導的な役割を担う人材」に位置付ける。"]
[]
[null,"３－６．役員の継承計画"]
[null,"役職名等",null,"氏名（現体制）",null,null,"氏名（後任予定者）",null,null,"継承予定時期"]
[null,"代表者",null,"丙川　三郎",null,null,"丙川　三郎",null,null,"令和",10,"年度"]
[null,"書記担当",null,"丙川　三郎",null,null,"丁本　四郎",null,null,"令和",12,"年度"]
[null,"会計担当",null,"乙山　次郎",null,null,"戊部　花子",null,null,"令和",12,"年度"]
[null,"共同機械担当",null,"乙山　次郎",null,null,"己藤　五郎",null,null,"令和",10,"年度"]
[null,"土地改良施設担当",null,"甲田　太郎",null,null,"丁本　四郎",null,null,"令和",12,"年度"]
[null,"法面点検担当",null,"丙川　三郎",null,null,"戊部　花子",null,null,"令和",10,"年度"]
[null,"注）「氏名（現体制）」は、本計画作成時点での役職者名を記載。「氏名（後任予定者）」は、現体制の担当者の次に担当となる人（予定）の氏名を記載。「氏名（現体制）」とは別の人を「氏名（後任予定者）」記載すること（同一人物の記載は不可）。"]
[]
[null,"３－７．体制の維持・向上に向けた活動事項"]
[null,"（役員の継承に向けた取組を記載）\n\n・代表者の後任予定者は丙川三郎とし、令和10年度の継承予定時期まで書記担当として代表者の業務の補助を行いながら、徐々に代表者業務の習得を行う。\n・その他の役員については、代表者交代時期の令和10年度と対策期切り替わりの令和12年度に分けて段階的に交代を行うことで、役員業務の引継ぎを計画的に進めていく。\n\n"]
[null,"（構成員や活動参加者の安定的な確保に向けた取組を記載）\n\n・大型連休期間に共同取組活動による草刈作業を実施し、構成員の親族にも可能な限りの参加を呼び掛ける。\n・総会の際に構成員に対し、農地の相続予定者に中山間地域等直接支払の活動についても引継ぎ予定があることを伝えるよう周知する。\n・集落外に在住している農地所有者に対して、毎年、活動報告と合わせて共同取組活動の案内を送付することで、共同取組活動への参加を促す。\n・一律の作業単価を見直し、傾斜が厳しい場所での作業等の負担が大きい作業については高い作業単価を設定するなど、共同取組活動に参加しやすくなる環境を整備する。また、令和７年度より適用を受けているスマート農業加算を利用して令和９年度にリモコン式自走草刈機を導入し、急傾斜地域での作業の省力化と安全な作業実施が可能となる環境を整備する。"]

{"sheet":"別紙２⑤（多様な組織等の参画）","index":10,"n_rows":44,"n_cols":12,"rows_kept":44,"cut":false,"hidden":false,"merged":[[0,0,0,14],[2,1,2,13],[5,1,5,6],[7,1,7,4],[7,5,7,10],[8,1,11,4],[8,5,8,10],[9,5,9,10],[10,5,10,10],[11,5,11,10],[12,1,15,4],[12,5,12,10],[13,5,13,10],[14,5,14,10],[15,5,15,10],[16,1,16,10],[19,1,19,5],[19,6,19,9],[20,1,20,5],[20,6,20,9],[21,1,21,5],[21,6,21,9],[22,1,22,5],[22,6,22,9],[23,1,23,10],[24,4,24,5],[30,1,30,2],[30,3,30,6],[30,7,30,8],[30,9,30,12],[26,1,26,9],[27,0,27,12],[29,1,29,2],[29,3,29,6],[29,7,29,8],[29,9,29,12],[31,1,31,2],[31,3,31,6],[31,7,32,8],[31,9,31,12],[32,1,32,2],[32,3,32,6],[32,9,32,12],[33,1,33,12],[34,1,34,12],[37,1,37,2],[37,3,37,6],[37,7,37,8],[37,9,37,12],[38,1,38,2],[38,3,38,6],[38,7,38,8],[38,9,38,12],[39,1,39,2],[39,3,39,6],[39,7,39,8],[39,9,39,12],[43,1,43,12],[40,1,40,2],[40,3,40,6],[40,7,42,8],[40,9,40,12],[41,1,41,2],[41,3,41,6],[41,9,42,12],[42,1,42,2],[42,3,42,6]]}
["○ネットワーク化活動計画⑥"]
["４.多様な組織等の参画"]
[null,"注）４－１～４－３の全てを記載すること。"]
[]
[null,"４－１．協定活動に参画する多様な組織等"]
[null,"注）（１）又は（２）の該当する項目を記載すること。"]
[null,"（１）農業者団体以外の組織"]
[null,"参画方法",null,null,null,"組織名"]
[null,"①集落協定の構成員",null,null,null,"●●自治会"]
[null,null,null,null,null,"●●農地保全会(多面的機能支払活動組織)"]
[null,null,null,null,null,"ＮＰＯ法人●●"]
[]
[null,"②別途協定等を締結"]
[]
[]
[]
[null,"注１）「別途協定等を締結」とは集落協定の構成員とはならないが、協定の活動への参画に関する協定、覚書等を結ぶなど、連携関係を明確にすることをいう。\n\n注２）②の場合は連携関係を証明する書類を添付すること。"]
[]
[null,"（２）非農業者"]
[null,"参画方法",null,null,null,null,"人数"]
[null,"①集落協定の構成員",null,null,null,null,3]
[null,"②別途協定等を締結"]
[null,"合計"]
[null,"③集落協定の全構成員数（集落協定の構成員数（農業者数＋①※組織数は含めない）に②を加えた人数）",null,null,null,null,null,null,null,null,null,15]
[null,"①＋②が③に占める割合",null,null,"20％",null,"（小数点以下切り捨て）"]
[]
[null,"注１）「別途協定等を締結」とは集落協定の構成員とはならないが、協定の活動への参画に関する協定、覚書等を結ぶなど、連携関係を明確にすることをいう。\n\n注２）②の場合は連携関係を証明する書類を添付すること。\n\n注３）協定活動に参画する組織の構成員は人数に含めない。"]
["○ネットワーク化活動計画⑦"]
[null,"４－２．多様な組織等の参画で解決しようとする課題"]
[null,"該当",null,null,null,null,null,"該当"]
[null,"○",null,"①事務担当者の人材不足",null,null,null,"　",null,"④知見や技術の不足"]
[null,"○",null,"②共同取組活動参加者の不足",null,null,null,null,null,"⑤その他（※内容は↓欄に記載ください）"]
[null,"　",null,"③農業作業の人材不足"]
[null,"（該当する課題について詳細を記載）\n①構成員は高齢者が多く、事務の引き受け手の確保が困難である。\n②棚田の石積の草取りや補修は集落総出で行ってきてが、高齢者の参加が難しくなり、人手の確保が困難になってきている。また、高齢のために棚田での水稲作の継続が困難な農地が増えてきている。"]
[null,"注）地域計画や集落マスタープラン、第５期対策で作成した集落戦略に位置付けられた内容を踏まえて検討すること。"]
[]
[null,"４－３．多様な組織等の参画により連携して実施する活動"]
[null,"該当",null,"連携して実施する活動",null,null,null,"該当",null,"連携して実施する活動"]
[null,"○",null,"①事務の適切な実施",null,null,null,null,null,"⑥鳥獣害対策"]
[null,"○",null,"②農地保全（草刈り、荒廃防止活動等）",null,null,null,null,null,"⑦多面的機能を増進する活動"]
[null,"○",null,"③水路・農道等の維持管理",null,null,null,null,null,"⑤その他（※内容は↓欄に記載ください）"]
[null,null,null,"④農作業"]
[null,null,null,"⑤地場農産物の加工・販売"]
[null,"（連携して実施する活動の詳細について、今後の活動の維持、向上に向けた方向性も含めて記載）\n\n・多面的機能支払交付金の事務支援も行っていた土地改良区が令和５年度より構成員に加わり、土地改良区が集落協定の事務を担当している。集落協定の対象農用地の一部は多面的機能支払の対象にもなっており、効率的な事務作業ができることから、今後も引き続き土地改良区が事務を担当する予定である。\n・Ｊ農地保全会では、令和８年度に草刈隊を結成する予定である。草刈隊が水路・農道の草刈を実施する際に、水路等の周辺にある集落協定の農地の法面の草刈も草刈隊と連携して行うことで、作業の効率化を図る。\n"]